bitfinex/quotes_BTCUSD_20230906
["timestamp","ask_amount","ask_price","bid_price","bid_amount"]
[1694023085557,1.541693,25946.0,25938.0,0.02]
[1694023085767,0.47484527,25945.0,25943.0,0.008]
[1694023085991,0.47484527,25945.0,25943.0,0.15465811]
[1694023085992,0.66492527,25945.0,25943.0,0.15465811]
[1694023086196,0.66492527,25945.0,25939.0,0.771017]
[1694023086197,0.002,25941.0,25939.0,0.771017]
[1694023086403,0.002,25941.0,25940.0,3.42469223]
[1694023086611,0.06492,25950.0,25942.0,0.02]
[1694023086820,0.009,25946.0,25943.0,1.69647711]
[1694023087041,0.009,25946.0,25943.0,0.770899]
[1694023087240,0.009,25946.0,25943.0,0.670899]
[1694023088296,0.009,25946.0,25943.0,1.441819]
[1694023088475,0.009,25946.0,25945.0,0.02]
[1694023088706,0.1506,25949.0,25945.0,3.05982855]
[1694023088925,0.1506,25949.0,25945.0,3.83068955]
[1694023089136,0.1506,25949.0,25946.0,1.11137952]
[1694023089339,0.06043253,25951.0,25946.0,1.11137952]
[1694023089549,0.06043253,25951.0,25947.0,1.541604]
[1694023089965,0.06043253,25951.0,25946.0,0.770813]
[1694023090171,0.002,25949.0,25947.0,2.65298866]
[1694023090388,0.21474253,25951.0,25947.0,1.441601]
[1694023090823,0.21474253,25951.0,25947.0,1.61725911]
[1694023091029,0.86539,25957.0,25948.0,1.11133885]
[1694023091237,0.44707259,25956.0,25949.0,1.69612011]
[1694023091446,0.154284,25953.0,25949.0,1.69612011]
[1694023091672,0.154284,25953.0,25949.0,1.541462]
[1694023092089,0.154284,25953.0,25949.0,2.312204]
[1694023092307,0.12822732,25956.0,25948.0,0.770743]
[1694023092526,0.46854527,25955.0,25948.0,0.15465811]
[1694023092724,0.46854527,25955.0,25942.0,0.3173]
[1694023092725,0.11616,25952.0,25942.0,0.770931]
[1694023092937,0.770705,25951.0,25949.0,0.001]
[1694023093147,1.659314,25951.0,25942.0,1.541881]
[1694023093360,1.659314,25951.0,25948.0,0.002]
[1694023093361,0.09216,25950.0,25948.0,0.002]
[1694023093592,0.85941,25950.0,25948.0,0.002]
[1694023093833,1.63608,25950.0,25942.0,0.770931]
[1694023094027,0.10164,25950.0,25943.0,1.29116297]
[1694023094235,0.154315,25951.0,25945.0,1.541716]
[1694023094446,0.154315,25951.0,25946.0,1.26616297]
[1694023094690,0.154315,25951.0,25947.0,0.770787]
[1694023094894,0.154315,25951.0,25947.0,1.88219826]
[1694023095095,0.154315,25951.0,25947.0,0.92544511]
[1694023095307,0.154315,25951.0,25947.0,1.69124711]
[1694023095512,0.154315,25951.0,25947.0,1.536589]
[1694023095719,0.154315,25951.0,25947.0,1.556589]
[1694023095938,0.06042732,25956.0,25948.0,1.27801596]
[1694023096146,0.001,25950.0,25949.0,1.88207685]
[1694023096360,0.154273,25955.0,25949.0,3.03946412]
[1694023096570,0.001,25951.0,25950.0,1.26601596]
[1694023096777,0.154273,25955.0,25950.0,1.88205985]
[1694023096986,0.154273,25955.0,25951.0,0.15465811]
[1694023097192,0.08442732,25956.0,25952.0,0.770647]
[1694023097403,0.08442732,25956.0,25949.0,0.09848281]
[1694023097404,0.04,25951.0,25949.0,0.09848281]
[1694023097617,0.04,25951.0,25948.0,0.002]
[1694023097618,0.38664527,25950.0,25948.0,0.002]
[1694023097826,0.936991,25954.0,25948.0,0.002]
[1694023097827,0.770606,25954.0,25948.0,0.002]
[1694023098041,0.837825,25953.0,25948.0,0.002]
[1694023098244,0.38664527,25953.0,25948.0,0.15665811]
[1694023098496,0.54094927,25953.0,25948.0,0.15465811]
[1694023098698,0.002,25951.0,25950.0,0.005]
[1694023098913,0.002,25951.0,25948.0,0.15465811]
[1694023098914,0.54094927,25953.0,25948.0,0.15465811]
[1694023099148,0.54094927,25953.0,25950.0,1.541424]
[1694023099149,0.154304,25953.0,25950.0,1.541424]
[1694023099342,0.178304,25953.0,25950.0,2.46679411]
[1694023099548,0.154304,25953.0,25950.0,2.46679411]
[1694023099776,0.154304,25953.0,25947.0,0.770797]
[1694023099990,0.154304,25953.0,25942.0,0.22192605]
[1694023099991,0.02,25951.0,25950.0,0.001]
[1694023100181,1.92801127,25951.0,25941.0,1.541938]
[1694023100404,1.92801127,25951.0,25941.0,0.770964]
[1694023100405,0.38664527,25950.0,25941.0,0.770964]
[1694023100613,2.02770727,25950.0,25941.0,1.54193]
[1694023100821,0.224084,25953.0,25942.0,0.80323188]
[1694023101072,0.38664527,25952.0,25944.0,0.770864]
[1694023101319,1.54138,25951.0,25944.0,0.15465811]
[1694023101551,2.739477,25951.0,25950.0,0.005]
[1694023101747,2.739477,25951.0,25939.0,0.46882605]
[1694023101748,0.06,25949.0,25939.0,0.2469]
[1694023101952,0.770808,25947.0,25940.0,0.770988]
[1694023102163,0.38664527,25946.0,25942.0,0.001]
[1694023102383,0.38664527,25946.0,25940.0,1.542005]
[1694023102591,0.38664527,25946.0,25941.0,0.77096]
[1694023102806,0.770751,25949.0,25941.0,0.77096]
[1694023102989,0.06642,25950.0,25942.0,0.54130338]
[1694023103223,0.02,25946.0,25944.0,2.312638]
[1694023103659,0.02,25946.0,25944.0,3.083518]
[1694023103866,0.02,25946.0,25944.0,3.073518]
[1694023104091,0.38664527,25945.0,25944.0,2.302638]
[1694023104292,0.38664527,25945.0,25942.0,0.13415808]
[1694023104293,0.1,25943.0,25942.0,0.001]
[1694023104697,0.02,25942.0,25932.0,0.9931565]
[1694023104698,0.04,25941.0,25932.0,0.2219285]
[1694023104903,1.542078,25939.0,25931.0,0.87680182]
[1694023105120,0.38664527,25938.0,25931.0,0.87680182]
[1694023105494,0.38664527,25938.0,25931.0,0.87678882]
[1694023105738,0.06,25936.0,25931.0,0.0167594]
[1694023106025,0.3573,25933.0,25931.0,0.0167594]
[1694023106368,1.15789227,25932.0,25931.0,0.0167594]
[1694023106370,1.92913927,25932.0,25931.0,0.0167594]
[1694023106595,0.07152,25932.0,25931.0,1.5593134]
[1694023106826,0.771069,25938.0,25931.0,1.5593134]
[1694023107085,0.45798527,25937.0,25932.0,0.15465811]
[1694023107310,0.69820527,25937.0,25931.0,0.17141751]
[1694023107544,1.54228,25936.0,25931.0,0.17141751]
[1694023107758,0.38664527,25935.0,25931.0,0.0167594]
[1694023108018,1.24409227,25935.0,25931.0,0.0167594]
[1694023108190,0.06516,25934.0,25931.0,0.0167594]
[1694023108408,0.38664527,25933.0,25931.0,0.0167594]
[1694023108867,0.45504527,25933.0,25931.0,0.0167594]
[1694023109085,0.08418,25932.0,25931.0,0.0167594]
[1694023109294,0.46410527,25932.0,25931.0,0.0167594]
[1694023109506,0.45522527,25932.0,25931.0,0.0167594]
[1694023109732,0.38664527,25932.0,25931.0,0.0167594]
[1694023109953,0.019,25933.0,25931.0,0.0167594]
[1694023110171,0.019,25933.0,25932.0,0.38664526]
[1694023110386,0.40564527,25933.0,25932.0,0.38664526]
[1694023110831,0.019,25933.0,25932.0,0.38664526]
[1694023111374,0.3573,25941.0,25932.0,0.38664526]
[1694023111375,0.771163,25935.0,25932.0,0.38664526]
[1694023111615,0.771157,25936.0,25932.0,0.38664526]
[1694023111616,0.38664527,25934.0,25932.0,0.38664526]
[1694023112413,0.07198,25933.0,25932.0,0.38864526]
[1694023112654,0.07198,25933.0,25932.0,0.38664526]
[1694023112655,1.22998327,25933.0,25932.0,0.38664526]
[1694023112929,0.38664527,25933.0,25932.0,0.38764526]
[1694023113424,1.544417,25934.0,25932.0,0.38764526]
[1694023113425,0.002,25934.0,25932.0,0.38764526]
[1694023113672,0.06247153,25934.0,25932.0,0.38764526]
[1694023114031,0.38664527,25933.0,25932.0,0.38764526]
[1694023114179,0.38664527,25933.0,25932.0,0.38664526]
[1694023114458,0.38764527,25933.0,25932.0,0.38864526]
[1694023114650,0.45762527,25933.0,25932.0,0.38664526]
[1694023114906,0.45594527,25933.0,25932.0,0.38764526]
[1694023115217,2.78435927,25933.0,25932.0,0.38764526]
[1694023115460,3.33523927,25933.0,25931.0,0.0167594]
[1694023115723,1.68694527,25932.0,25931.0,0.0167594]
[1694023115967,4.66200124,25932.0,25931.0,0.0167594]
[1694023116243,0.98,25930.0,25929.0,0.0202]
[1694023116517,0.15542,25933.0,25929.0,0.56150338]
[1694023116784,0.001,25933.0,25930.0,0.54130338]
[1694023117066,1.621678,25942.0,25936.0,0.065]
[1694023117067,0.0048,25942.0,25936.0,0.065]
[1694023117311,0.0048,25942.0,25941.0,0.4623]
[1694023117575,0.0048,25948.0,25944.0,0.04]
[1694023117835,0.0048,25948.0,25945.0,1.54171]
[1694023118085,0.0048,25948.0,25947.0,0.125]
[1694023118328,0.775492,25951.0,25945.0,0.15465811]
[1694023118531,1.15741727,25948.0,25946.0,0.15465811]
[1694023118746,0.38664527,25947.0,25942.0,0.770943]
[1694023118971,0.003,25948.0,25944.0,0.008]
[1694023119215,0.003,25948.0,25944.0,1.70441311]
[1694023119423,0.003,25948.0,25944.0,1.549755]
[1694023119681,0.003,25948.0,25944.0,0.778877]
[1694023119848,0.38664527,25947.0,25944.0,0.778877]
[1694023120060,0.38664527,25947.0,25941.0,0.855971]
[1694023120061,0.38664527,25947.0,25941.0,0.085]
[1694023120276,1.26993336,25947.0,25937.0,0.085]
[1694023120486,0.38664527,25947.0,25945.0,0.001]
[1694023120731,0.38664527,25947.0,25943.0,0.770916]
[1694023120972,0.154346,25946.0,25944.0,0.770876]
[1694023121223,0.154346,25946.0,25944.0,0.007]
[1694023121475,0.154346,25946.0,25941.0,0.855961]
[1694023121947,0.154346,25946.0,25945.0,0.007]
[1694023122269,0.154346,25946.0,25944.0,0.770875]
[1694023122498,0.154346,25946.0,25940.0,1.541987]
[1694023122499,0.38664527,25945.0,25940.0,1.541987]
[1694023123004,0.38664527,25945.0,25939.0,1.54205]
[1694023123005,0.02,25944.0,25939.0,1.54205]
[1694023123025,0.02,25944.0,25940.0,0.771006]
[1694023123930,0.02,25944.0,25939.0,1.542042]
[1694023124025,0.02,25944.0,25940.0,0.786005]
[1694023124027,0.02,25944.0,25940.0,2.08331838]
[1694023124237,0.02,25944.0,25940.0,2.85432838]
[1694023124470,0.022,25944.0,25940.0,2.71467027]
[1694023124978,0.022,25944.0,25940.0,0.015]
[1694023125213,0.022,25944.0,25940.0,0.786]
[1694023125680,0.022,25944.0,25940.0,0.015]
[1694023125987,0.02,25942.0,25940.0,0.015]
[1694023126171,0.002,25944.0,25940.0,1.557011]
[1694023126415,0.02,25942.0,25940.0,0.015]
[1694023127030,0.38664527,25941.0,25940.0,0.015]
[1694023127219,1.17762527,25941.0,25935.0,0.2795]
[1694023127640,1.17762527,25941.0,25940.0,0.001]
[1694023127858,1.17762527,25941.0,25935.0,1.050656]
[1694023128094,2.02254527,25941.0,25940.0,0.02]
[1694023128228,2.72158527,25941.0,25940.0,0.02]
[1694023128426,2.03794527,25941.0,25935.0,0.2795]
[1694023128630,2.80742527,25941.0,25935.0,0.2795]
[1694023128880,0.06504,25940.0,25935.0,0.2795]
[1694023129172,0.02,25941.0,25935.0,2.74763111]
[1694023129454,0.40664527,25941.0,25935.0,1.821815]
[1694023129633,0.40664527,25941.0,25935.0,0.2805]
[1694023129634,0.02,25936.0,25935.0,0.2805]
[1694023129879,0.02,25936.0,25935.0,0.2795]
[1694023129880,1.562256,25936.0,25935.0,0.2795]
[1694023130138,0.10818,25939.0,25937.0,0.04]
[1694023130386,0.02,25939.0,25935.0,1.051658]
[1694023130682,0.38664527,25938.0,25935.0,0.2795]
[1694023130928,0.38664527,25938.0,25935.0,0.3005]
[1694023130929,0.002,25936.0,25935.0,0.3005]
[1694023131154,1.92879827,25938.0,25935.0,0.2795]
[1694023131423,0.47948527,25938.0,25935.0,0.2845]
[1694023131638,0.02,25937.0,25935.0,0.2845]
[1694023131891,0.40664527,25937.0,25936.0,0.1]
[1694023132425,0.02,25935.0,25934.0,0.00100003]
[1694023132628,0.02,25932.0,25929.0,0.79152]
[1694023132834,0.07938,25936.0,25929.0,1.562852]
[1694023133051,0.02,25932.0,25929.0,2.48884711]
[1694023133265,0.02,25932.0,25929.0,1.562852]
[1694023133475,0.02,25932.0,25929.0,0.0202]
[1694023133669,0.38664527,25931.0,25929.0,0.791536]
[1694023133930,0.02,25930.0,25929.0,0.0202]
[1694023134143,0.40664527,25930.0,25929.0,0.0362]
[1694023134566,0.40664527,25930.0,25929.0,0.0202]
[1694023134767,1.94925927,25930.0,25929.0,0.0202]
[1694023134975,2.81392627,25930.0,25929.0,0.0202]
[1694023135137,1.17795227,25930.0,25929.0,0.0202]
[1694023135362,0.40664527,25930.0,25929.0,0.0202]
[1694023135764,0.40664527,25930.0,25929.0,0.0362]
[1694023136335,0.40664527,25930.0,25929.0,0.0202]
[1694023136573,2.81538627,25930.0,25929.0,0.0212]
[1694023136787,2.04417927,25930.0,25929.0,0.0202]
[1694023137024,4.28361927,25930.0,25929.0,0.0202]
[1694023137246,4.28361927,25930.0,25929.0,0.0222]
[1694023137247,4.31443927,25930.0,25929.0,0.0222]
[1694023137461,2.75992527,25930.0,25929.0,0.0202]
[1694023137694,3.52811227,25930.0,25929.0,0.0202]
[1694023137882,4.32877927,25930.0,25929.0,0.0212]
[1694023138083,4.32289927,25930.0,25929.0,0.0212]
[1694023138310,4.31557927,25930.0,25929.0,0.0212]
[1694023138529,5.09216627,25930.0,25929.0,0.0212]
[1694023138766,5.31284627,25930.0,25929.0,0.0212]
[1694023138972,5.85272672,25930.0,25929.0,0.0212]
[1694023139237,6.28118627,25930.0,25929.0,0.01139]
[1694023139519,6.28118627,25930.0,25929.0,0.01239]
[1694023139520,6.06672627,25930.0,25929.0,0.01239]
[1694023139805,6.31520076,25930.0,25929.0,0.01139]
[1694023140007,6.63338076,25930.0,25929.0,0.01139]
[1694023140289,6.64728076,25930.0,25929.0,0.01239]
[1694023140512,6.61808076,25930.0,25929.0,0.01139]
[1694023140855,6.64478076,25930.0,25929.0,0.01239]
[1694023141067,1.58,25927.0,25926.0,0.0202]
[1694023141323,0.18,25926.0,25925.0,0.0202]
[1694023141586,4.40836327,25926.0,25925.0,0.0202]
[1694023141835,4.56284327,25926.0,25925.0,0.0202]
[1694023142110,4.55924327,25926.0,25925.0,0.0202]
[1694023142341,4.40260327,25926.0,25925.0,0.0202]
[1694023142612,4.13092327,25926.0,25925.0,0.0202]
[1694023142875,4.13908327,25926.0,25925.0,0.0202]
[1694023143128,5.12937378,25926.0,25925.0,0.0202]
[1694023143382,4.72364327,25926.0,25925.0,0.0212]
[1694023143634,4.71452327,25926.0,25925.0,0.0212]
[1694023143887,4.97618327,25926.0,25925.0,0.0212]
[1694023144186,4.96790327,25926.0,25925.0,0.0212]
[1694023144375,4.71948327,25926.0,25925.0,0.0212]
[1694023144625,4.71360327,25926.0,25925.0,0.0212]
[1694023144895,4.70376327,25926.0,25925.0,0.0212]
[1694023145165,0.18,25922.0,25921.0,0.0202]
[1694023145465,4.98597027,25922.0,25921.0,0.0202]
[1694023145690,5.75929027,25922.0,25921.0,0.0202]
[1694023146031,5.75911027,25922.0,25921.0,0.0202]
[1694023146294,5.29473027,25922.0,25921.0,0.0202]
[1694023146505,5.99331554,25922.0,25921.0,0.0202]
[1694023146779,1.58,25919.0,25918.0,0.0202]
[1694023147038,0.02,25910.0,25909.0,0.0202]
[1694023147344,2.415706,25910.0,25909.0,0.0202]
[1694023147570,3.322308,25910.0,25909.0,0.0202]
[1694023147838,3.55291127,25910.0,25909.0,0.0202]
[1694023148080,3.44707127,25910.0,25909.0,0.0202]
[1694023148304,3.79133127,25910.0,25909.0,0.0202]
[1694023148536,4.07029127,25910.0,25909.0,0.0202]
[1694023148783,1.56,25908.0,25907.0,0.0202]
[1694023149005,1.56,25908.0,25903.0,0.0202]
[1694023149006,1.58,25904.0,25903.0,0.0202]
[1694023149212,3.51080727,25904.0,25903.0,0.0202]
[1694023149464,3.39996827,25904.0,25903.0,0.0202]
[1694023149683,3.18296827,25904.0,25903.0,0.0202]
[1694023149925,3.52135627,25904.0,25903.0,0.0202]
[1694023150144,3.30501627,25904.0,25903.0,0.0202]
[1694023150366,4.70962154,25904.0,25903.0,0.0202]
[1694023150611,5.37228154,25904.0,25903.0,0.0202]
[1694023150819,5.37228154,25904.0,25895.0,0.0202]
[1694023150820,0.6,25900.0,25895.0,0.0202]
[1694023151057,4.00994527,25900.0,25895.0,0.0202]
[1694023151269,4.59206527,25900.0,25895.0,0.0202]
[1694023151551,0.02,25896.0,25895.0,0.0202]
[1694023151714,2.76360527,25896.0,25895.0,0.0202]
[1694023151956,2.07660527,25896.0,25895.0,0.0202]
[1694023152184,2.08482527,25896.0,25895.0,0.0202]
[1694023152485,0.2789,25897.0,25895.0,0.0202]
[1694023152486,0.792272,25898.0,25896.0,0.38561434]
[1694023152711,0.02,25897.0,25896.0,0.38561434]
[1694023152955,0.02,25899.0,25896.0,0.38561434]
[1694023153369,0.081,25898.0,25896.0,0.38561434]
[1694023153652,0.885104,25898.0,25896.0,0.38561434]
[1694023153810,1.693628,25898.0,25895.0,0.0202]
[1694023154038,0.48420527,25897.0,25895.0,0.0202]
[1694023154254,0.79232,25896.0,25895.0,0.0202]
[1694023154488,2.05364527,25896.0,25895.0,0.0202]
[1694023154713,2.23448527,25896.0,25895.0,0.0202]
[1694023154943,2.56874527,25896.0,25895.0,0.0202]
[1694023155184,2.58494527,25896.0,25895.0,0.0202]
[1694023155402,2.84292527,25896.0,25895.0,0.0202]
[1694023155630,2.62434527,25896.0,25895.0,0.0202]
[1694023155873,2.95282527,25896.0,25895.0,0.0202]
[1694023156118,3.36455054,25896.0,25895.0,0.0202]
[1694023156373,1.47882732,25896.0,25895.0,0.0202]
[1694023156601,0.38664527,25896.0,25895.0,0.0202]
[1694023156849,0.024,25896.0,25895.0,0.0202]
[1694023157057,1.95528527,25896.0,25895.0,0.0202]
[1694023157506,2.07018527,25896.0,25895.0,0.03874633]
[1694023157783,3.06340527,25896.0,25895.0,0.03874633]
[1694023158039,4.42614527,25896.0,25895.0,0.03874633]
[1694023158288,0.5,25891.0,25884.0,0.00025794]
[1694023158546,3.329024,25889.0,25884.0,0.00025794]
[1694023158819,0.38664527,25888.0,25884.0,0.00025794]
[1694023159045,0.772531,25889.0,25884.0,0.00025794]
[1694023159266,0.772429,25893.0,25887.0,0.08]
[1694023159600,0.772429,25893.0,25888.0,0.15465811]
[1694023159601,0.772485,25891.0,25888.0,0.15465811]
[1694023159812,0.024,25889.0,25885.0,0.08]
[1694023160020,0.772564,25888.0,25884.0,0.10025794]
[1694023160232,2.317692,25888.0,25884.0,0.04025794]
[1694023160458,2.357692,25888.0,25882.0,0.00025794]
[1694023161141,0.02,25881.0,25880.0,4.383974]
[1694023161380,2.72494627,25881.0,25880.0,4.117374]
[1694023161831,0.792767,25881.0,25880.0,4.117374]
[1694023162039,1.95217927,25881.0,25880.0,4.117374]
[1694023162284,1.17941227,25881.0,25880.0,4.117374]
[1694023162492,2.01787927,25881.0,25880.0,4.117374]
[1694023162701,1.95217927,25881.0,25880.0,4.117374]
[1694023163136,1.97617927,25881.0,25880.0,4.117374]
[1694023163792,2.2530724,25881.0,25880.0,4.117374]
[1694023164009,1.97617927,25881.0,25880.0,4.117374]
[1694023164229,2.81710627,25881.0,25880.0,4.117374]
[1694023164446,2.76894627,25881.0,25880.0,4.117374]
[1694023164668,2.86596627,25881.0,25880.0,4.117374]
[1694023164888,2.84790627,25881.0,25880.0,4.117374]
[1694023165102,2.85546627,25881.0,25880.0,4.117374]
[1694023165370,2.85636627,25881.0,25880.0,4.117374]
[1694023165581,2.76894627,25881.0,25880.0,4.117374]
[1694023166039,1.93217927,25881.0,25880.0,4.117374]
[1694023166247,0.044,25881.0,25880.0,4.117374]
[1694023166471,0.796767,25881.0,25880.0,4.117374]
[1694023166686,0.024,25881.0,25880.0,4.117374]
[1694023167363,2.81261717,25881.0,25880.0,4.117374]
[1694023167585,1.93217927,25881.0,25880.0,4.117374]
[1694023167807,0.024,25881.0,25880.0,4.117374]
[1694023168241,0.81241306,25885.0,25880.0,4.117374]
[1694023168242,0.772671,25885.0,25880.0,4.117374]
[1694023168456,0.947278,25887.0,25883.0,0.02025794]
[1694023168671,0.38664527,25886.0,25884.0,0.15465811]
[1694023168902,1.719871,25887.0,25883.0,0.02025794]
[1694023169121,0.38664527,25886.0,25883.0,0.17491605]
[1694023169327,0.38664527,25886.0,25883.0,0.02025794]
[1694023169539,0.024,25885.0,25883.0,0.02025794]
[1694023169751,1.18331927,25885.0,25883.0,0.00025794]
[1694023169968,1.95596927,25885.0,25883.0,0.00025794]
[1694023170199,2.72864327,25885.0,25883.0,0.00025794]
[1694023170416,2.72864327,25885.0,25880.0,4.137374]
[1694023170417,1.18330627,25885.0,25880.0,4.890157]
[1694023170632,0.02,25883.0,25880.0,4.117374]
[1694023170849,0.827724,25883.0,25880.0,4.117374]
[1694023171070,0.055,25883.0,25880.0,4.117374]
[1694023171544,0.02,25884.0,25881.0,0.00025794]
[1694023171998,0.024,25883.0,25881.0,0.00025794]
[1694023172243,1.17934227,25884.0,25881.0,0.00025794]
[1694023172462,0.40664527,25884.0,25881.0,0.00025794]
[1694023172680,0.41064527,25883.0,25880.0,4.117374]
[1694023172891,0.772737,25882.0,25881.0,0.00025794]
[1694023173107,1.15938227,25882.0,25881.0,0.00025794]
[1694023173318,1.545338,25885.0,25881.0,0.00025794]
[1694023173542,1.37436907,25884.0,25881.0,0.00025794]
[1694023173761,0.44164527,25884.0,25880.0,4.117374]
[1694023173988,0.035,25881.0,25880.0,4.117374]
[1694023174206,2.612201,25881.0,25880.0,4.117374]
[1694023174424,1.600534,25881.0,25880.0,4.117374]
[1694023174643,2.28717927,25881.0,25880.0,4.117374]
[1694023174870,0.035,25881.0,25880.0,4.117374]
[1694023175556,0.059,25881.0,25880.0,4.117374]
[1694023175994,0.44564527,25881.0,25880.0,4.117374]
[1694023176240,3.88878697,25881.0,25880.0,4.117374]
[1694023176455,4.20244903,25881.0,25880.0,4.117374]
[1694023176677,4.25757533,25881.0,25880.0,4.117374]
[1694023176899,3.93442982,25881.0,25880.0,4.117374]
[1694023177141,2.28717927,25881.0,25880.0,4.117374]
[1694023177351,1.19441227,25881.0,25880.0,4.117374]
[1694023177570,0.059,25881.0,25880.0,4.117374]
[1694023178225,0.024,25881.0,25880.0,5.04508705]
[1694023178445,0.024,25881.0,25880.0,5.66322594]
[1694023178882,0.055,25884.0,25881.0,0.00025794]
[1694023179113,0.055,25884.0,25881.0,0.92767405]
[1694023179333,0.02,25883.0,25881.0,1.54578294]
[1694023179545,0.40664527,25883.0,25881.0,0.00025794]
[1694023179770,0.055,25883.0,25881.0,0.00025794]
[1694023180680,0.38664527,25882.0,25881.0,0.00025794]
[1694023180908,0.82771,25883.0,25881.0,0.00025794]
[1694023181118,0.055,25883.0,25881.0,0.77302494]
[1694023181347,1.23835327,25883.0,25881.0,0.001]
[1694023181554,1.98706127,25883.0,25880.0,4.117374]
[1694023181764,0.044,25882.0,25881.0,0.001]
[1694023181980,0.816737,25882.0,25881.0,0.001]
[1694023182198,0.792737,25882.0,25880.0,4.117374]
[1694023182418,0.02,25882.0,25880.0,4.117374]
[1694023183558,0.02,25882.0,25880.0,4.11763194]
[1694023183994,0.044,25882.0,25880.0,4.11763194]
[1694023184250,0.044,25882.0,25880.0,4.117374]
[1694023184694,0.816737,25882.0,25880.0,4.117374]
[1694023184917,0.024,25882.0,25880.0,4.117374]
[1694023185134,0.044,25882.0,25880.0,4.117374]
[1694023185346,0.044,25882.0,25880.0,4.11763194]
[1694023186198,0.044,25882.0,25880.0,5.66322294]
[1694023186662,0.024,25882.0,25880.0,5.66322294]
[1694023186884,0.024,25882.0,25881.0,0.38690321]
[1694023187103,0.02,25885.0,25882.0,0.00025794]
[1694023187319,0.154685,25887.0,25885.0,0.00025794]
[1694023187545,0.154685,25887.0,25885.0,0.15491605]
[1694023187774,0.02,25886.0,25885.0,0.00025794]
[1694023188441,0.154685,25887.0,25885.0,1.54555394]
[1694023188681,0.154685,25887.0,25886.0,0.00025794]
[1694023188891,0.154685,25887.0,25886.0,1.70015205]
[1694023189117,0.055,25893.0,25887.0,0.00025794]
[1694023189336,0.055,25893.0,25889.0,2.317575]
[1694023189556,0.055,25893.0,25891.0,0.00025794]
[1694023189773,0.055,25893.0,25891.0,0.15491605]
[1694023189985,0.02,25892.0,25888.0,0.77280394]
[1694023190213,0.947101,25892.0,25891.0,0.00025794]
[1694023190423,0.055,25889.0,25887.0,0.00025794]
[1694023190896,0.209656,25892.0,25887.0,0.77284494]
[1694023191106,0.02,25891.0,25890.0,0.00025794]
[1694023191333,0.154656,25892.0,25891.0,0.00025794]
[1694023191562,0.035,25899.0,25895.0,0.00025794]
[1694023191797,0.938124,25903.0,25897.0,0.00025794]
[1694023191798,0.055,25903.0,25897.0,0.00025794]
[1694023192010,0.02,25903.0,25899.0,0.00025794]
[1694023192245,0.02,25902.0,25901.0,0.00025794]
[1694023192466,0.02,25902.0,25899.0,0.00025794]
[1694023192684,0.055,25900.0,25898.0,0.00025794]
[1694023192901,0.82722,25900.0,25898.0,0.00025794]
[1694023193123,1.59944,25900.0,25898.0,0.00025794]
[1694023193338,0.82722,25900.0,25899.0,0.00025794]
[1694023194408,0.055,25900.0,25899.0,0.00025794]
[1694023194639,1.93103427,25901.0,25899.0,0.00025794]
[1694023194852,0.8272,25900.0,25899.0,0.00225794]
[1694023195060,2.75824527,25900.0,25899.0,0.00025794]
[1694023195286,0.44164527,25900.0,25899.0,0.00025794]
[1694023195512,0.46564527,25900.0,25899.0,0.00225794]
[1694023195731,0.024,25900.0,25899.0,0.92914605]
[1694023195942,0.079,25900.0,25899.0,1.54671794]
[1694023196157,0.055,25900.0,25899.0,2.31694794]
[1694023196398,0.209619,25902.0,25899.0,2.31694794]
[1694023196628,0.154619,25902.0,25901.0,0.00025794]
[1694023196903,0.055,25898.0,25894.0,0.2594]
[1694023197158,0.055,25892.0,25891.0,0.00025794]
[1694023197651,1.21408427,25892.0,25891.0,0.00025794]
[1694023197919,1.21408427,25892.0,25886.0,0.77285694]
[1694023198187,0.055,25888.0,25886.0,0.00025794]
[1694023198640,0.44164527,25888.0,25885.0,0.77290094]
[1694023198857,0.44164527,25888.0,25887.0,0.00025794]
[1694023199091,1.98676127,25888.0,25885.0,0.00025794]
[1694023199316,0.38664527,25887.0,25884.0,0.258]
[1694023199532,1.15925127,25887.0,25886.0,0.001]
[1694023199992,1.15923327,25887.0,25886.0,0.001]
[1694023200642,0.071,25888.0,25887.0,0.00025794]
[1694023200643,0.055,25888.0,25887.0,0.00025794]
[1694023200873,0.02,25887.0,25886.0,0.00025794]
[1694023201097,0.036,25888.0,25887.0,0.00025794]
[1694023201319,0.071,25888.0,25887.0,0.00025794]
[1694023201556,0.016,25888.0,25887.0,1.93207921]
[1694023201803,0.055,25890.0,25889.0,0.00025794]
[1694023202045,0.055,25896.0,25893.0,0.00025794]
[1694023202276,0.055,25895.0,25894.0,0.92703711]
[1694023202496,0.209646,25895.0,25894.0,0.92729505]
[1694023202711,0.055,25895.0,25894.0,0.77263694]
[1694023203161,0.055,25895.0,25894.0,1.54501594]
[1694023203385,1.272119,25903.0,25896.0,0.00025794]
[1694023203386,0.154638,25897.0,25896.0,0.00025794]
[1694023203618,0.154638,25897.0,25896.0,1.69955605]
[1694023203619,0.035,25897.0,25896.0,1.69955605]
[1694023203843,0.055,25897.0,25896.0,1.54489794]
[1694023204066,0.055,25900.0,25898.0,0.00025794]
[1694023204302,0.055,25900.0,25898.0,0.92717305]
[1694023204522,0.055,25902.0,25900.0,0.00025794]
[1694023204745,0.055,25902.0,25901.0,1.93815605]
[1694023204973,0.055,25902.0,25901.0,1.01132794]
[1694023205412,0.055,25902.0,25901.0,1.78349794]
[1694023205927,0.071,25902.0,25901.0,0.00125794]
[1694023206379,0.071,25902.0,25901.0,2.55666794]
[1694023206602,0.016,25902.0,25901.0,2.55666794]
[1694023207065,0.016,25902.0,25901.0,2.94331321]
[1694023207293,0.055,25901.0,25898.0,0.07422]
[1694023207521,0.055,25897.0,25896.0,0.00025794]
[1694023207747,0.055,25894.0,25893.0,0.00025794]
[1694023207972,0.055,25895.0,25894.0,0.00025794]
[1694023208417,0.975604,25900.0,25894.0,0.00025794]
[1694023208418,0.055,25897.0,25896.0,0.00025794]